[Event "Cattolica Chess Festival 2022"]
[Site "Cattolica"]
[Date "2022.06.04"]
[Round "1.1"]
[White "Mohamed Anees M"]
[Black "Bernadskiy, Vitaliy"]
[Result "0-1"]
[ECO "B96"]
[WhiteElo "2209"]
[BlackElo "2636"]
[Annotator "TA"]
[PlyCount "164"]
[EventDate "2022.06.04"]
[EventCountry "ITA"]
[SourceTitle "playchess.com"]
[Source "ChessBase"]
[SourceQuality "1"]
[TimeControl "5400+30"]

{[%evp 14,164,22,17,50,37,32,22,52,14,139,94,64,71,196,216,214,212,208,212,394,397,365,183,316,299,249,72,76,89,81,13,49,29,63,45,123,97,76,0,0,0,0,-29,164,169,148,145,159,97,91,50,65,0,0,0,0,0,0,0,0,-84,-35,-106,-109,-401,-404,-366,-348,-404,-404,-410,-293,-274,-268,-237,-229,-588,-588,-588,-588,-588,-588,-588,-588,-588,-588,-588,-588,-588,-588,-588,-588,-588,-588,-588,-588,-588,-588,-588,-588,-674,-674,-527,-527,-674,-674,-674,-674,-633,-633,-593,-593,-593,-593,-593,-593,-593,-593,-593,-593,-593,-593,-593,-593,-593,-593,-593,-593,-593,-593,-593,-593,-593,-593,-593,-593,-29985,-29986,-29986,-29987,-29987,-29988,-29992,-29993,-29993,-29994,-29995,-29996,-29996,-29997,-29997,-619]} 1. e4 {[%emt 0:30:03]} c5 {[%emt 0:30:03]} 2. Nf3 {[%emt 0:00:06]} d6 {[%emt 0:00:03]} 3. d4 {[%emt 0:00:06]} cxd4 {[%emt 0:00:02]} 4. Nxd4 {[%emt 0:00:07]} Nf6 {[%emt 0:00:03]} 5. Nc3 {[%emt 0:00:06]} a6 {[%emt 0:00:03]} 6. Bg5 {[%emt 0:00:16][%cal Bc1g5,Bg5h4,Bh4g3][%mdl 32]} e6 {[%emt 0:01:39]} 7. f4 {[%emt 0:00:06]} h6 {[%emt 0:00:28]} 8. Bh4 {[%emt 0:00:19]} Nbd7 {[%emt 0:00:17] B96: Sicilian Najdorf: 6 Bg5 e6 7 f4, lines other than 7...Qb6 and 7...Be7.} 9. Qe2 {[%emt 0:02:35]} e5 {[%emt 0:00:57]} 10. fxe5 {[%emt 0:03:43]} dxe5 {[%emt 0:00:25] The position is equal.} 11. O-O-O {[%emt 0:04:59][%cal Oc3d5] [#] And now Nd5! would win.} (11. Nf5 $5 {[%cal Re1c1]}) 11... g5 $146 {[%emt 0:01:27] [#]} (11... exd4 $11 12. e5 Be7 13. exf6 Nxf6 14. Bxf6 gxf6) ({Predecessor:} 11... exd4 12. e5 Be7 13. exf6 Nxf6 14. Bxf6 gxf6 15. g3 Be6 16. Bg2 Rc8 17. Nd5 Qa5 18. Nxe7 Kxe7 {1-0 (24) Vetter,G (2394)-Strengell,O (2366) ICCF email 2010}) 12. Bg3 $1 {[%emt 0:04:35]} exd4 {[%emt 0:03:29]} 13. e5 $1 {[%emt 0:02:01][%cal Be4e5,Be5e6][%mdl 32]} Nh7 {[%emt 0:01:01]} (13... Ng8 $16) 14. e6 $1 $18 {[%emt 0:11:35]} Ndf6 {[%emt 0:19:37] [#]} 15. Nb5 $1 {[%emt 0:01:36][%mdl 512]} Be7 {[%emt 0:01:55]} 16. Rxd4 {[%emt 0:07:55]} (16. Nc7+ $6 Kf8 $14) 16... Qb6 {[%emt 0:04:57]} (16... Qa5 17. Nc7+ Kf8) 17. Nc7+ $1 {[%emt 0:00:21]} Kf8 {[%emt 0:00:03]} 18. Qf2 {[%emt 0:00:03]} (18. Qe5 $142) 18... Qa7 {[%emt 0:02:06]} (18... Bc5 {was necessary.} 19. Nxa8 Qxe6) 19. Nxa8 {[%emt 0:00:15]} Qxa8 {[%emt 0:00:29]} 20. Bc4 {[%emt 0:00:29]} (20. exf7 $18 {and the rest is easy.} b5 21. Bd3) 20... Bxe6 $16 {[%emt 0:03:12]} 21. Bxe6 {[%emt 0:00:17]} fxe6 {[%emt 0:00:03]} 22. h4 {[%emt 0:04:14]} (22. Qe2 $16 Kg7 23. Qxe6) 22... Kg7 {[%emt 0:04:28] Strongly threatening ...Bc5.} 23. hxg5 {[%emt 0:01:17]} hxg5 {[%emt 0:00:04] White must now prevent ...Bc5.} 24. Be5 {[%emt 0:01:11] Hoping for Rd7.} Qe8 {[%emt 0:00:40] Prevents Rd7.} (24... Rd8 $1 $14) 25. Rc4 $36 {[%emt 0:05:35][%mdl 2048] White has strong initiative.} Qb5 {[%emt 0:03:05][%csl LRc4,LRe5]} 26. Rc7 {[%emt 0:00:19]} ({Better is} 26. Qe2 $1 $16 {a4 is the strong threat.} Nf8 27. Rxh8 Kxh8 28. a4 (28. Qh5+ Kg8 $11)) 26... Qxe5 $11 {[%emt 0:00:15]} 27. Rxe7+ {[%emt 0:00:05]} Kg6 $1 {[%emt 0:00:20]} 28. Kb1 {[%emt 0:08:13]} (28. Rxb7 $5 {[%cal Rb7e7]} Qf4+ 29. Qxf4 gxf4 30. Re7 $11) 28... Rf8 $2 {[%emt 0:09:11]} (28... Rd8 $11 29. a3 (29. Rxb7 Qd5 $11) 29... Nf8) 29. Qf3 $18 {[%emt 0:01:21]} (29. Rxb7 $6 Nh5 30. Qe1 (30. Qd2 N7f6 $11) 30... Qxe1+ 31. Rxe1 Nf4 $11) 29... Qf5 {[%emt 0:03:54]} 30. Qxb7 {[%emt 0:02:06][%csl Gb7][%cal Re7g7]} Nh5 {[%emt 0:00:50][%cal Of5f1] Against Rg7+} 31. a3 {[%emt 0:01:20]} (31. Rxh7 $2 Qf1+ $3 {[%mdl 512]} 32. Rxf1 Rxf1#) (31. Qxa6 $142 {[%cal Oe7h7] Threatens to win with Rxh7!} N7f6 32. Rxe6 (32. Qxe6 Qxe6 33. Rxe6 Nf4 $16)) 31... N7f6 $16 {[%emt 0:00:36][%cal Bh7f6,Bf6g4,Bg4f2][%mdl 32]} 32. Re1 {[%emt 0:01:41]} Qb5 {[%emt 0:01:48]} 33. g4 {[%emt 0:05:14]} (33. Qxb5 $14 axb5 34. Rb7 (34. R1xe6 Nf4 $11)) 33... Nxg4 $11 {[%emt 0:00:07]} 34. R7xe6+ {[%emt 0:02:48]} Rf6 {[%emt 0:02:40] Chess con chili.} 35. Qc8 {[%emt 0:00:00]} Rxe6 {[%emt 0:00:00]} 36. Qxe6+ {[%emt 0:00:00]} Nhf6 {[%emt 0:00:00]} 37. Rg1 {[%emt 0:00:00]} (37. c4 $11 {keeps the balance.} Qf5+ 38. Qxf5+ Kxf5 39. Rf1+ Ke6 40. Rg1) 37... Nf2 {[%emt 0:00:00]} ({Reject} 37... Qf5 38. Qxa6 Nf2 39. Qf1 $11) (37... Ne5 $17) 38. Qe3 {[%emt 0:00:00]} (38. b4 $15) 38... N2e4 $17 {[%emt 0:00:00] Black is more active.} 39. Qd3 $2 {[%emt 0:00:00][%mdl 8192]} (39. Qe1 $17) 39... Qxd3 $19 {[%emt 0:00:00]} 40. cxd3 {[%emt 0:00:00] [#]} Nd2+ {[%emt 0:00:00]} 41. Kc2 {[%emt 0:00:00]} Nf3 {[%emt 0:00:00]} 42. Rg3 {[%emt 0:00:00]} Nd4+ {[%emt 0:00:00]} 43. Kd2 {[%emt 0:00:00]} g4 {[%emt 0:00:00] aiming for ...Kg5.} 44. Rg2 {[%emt 0:00:00]} Nf3+ {[%emt 0:00:00]} 45. Kc3 $2 {[%emt 0:00:00]} (45. Ke3 Kf5 46. Rc2) 45... Nd5+ {[%emt 0:00:00]} 46. Kb3 {[%emt 0:00:00]} Ne3 {[%emt 0:00:00]} 47. Rg3 {[%emt 0:00:00]} Kf5 {[%emt 0:00:00]} 48. Ka4 {[%emt 0:00:00]} Kf4 {[%emt 0:00:00]} 49. Rxg4+ {[%emt 0:00:00]} Nxg4 {[%emt 0:00:00]} 50. Ka5 {[%emt 0:00:00]} Nd4 {[%emt 0:00:00]} 51. Kxa6 {[%emt 0:00:00]} Ke5 {[%emt 0:00:00]} 52. Kb7 {[%emt 0:00:00]} Kd6 {[%emt 0:00:00]} 53. b4 {[%emt 0:00:00]} Ne5 {[%emt 0:00:00]} 54. a4 {[%emt 0:00:00]} Nec6 {[%emt 0:00:00]} 55. a5 {[%emt 0:00:00]} Nb5 {[%emt 0:00:00]} 56. Kb6 {[%emt 0:00:00]} Nca7 {[%emt 0:00:00]} 57. Kb7 {[%emt 0:00:00]} Kd5 {[%emt 0:00:00]} 58. Kb6 {[%emt 0:00:00]} Kd4 {[%emt 0:00:00]} 59. a6 {[%emt 0:00:00]} Kd5 {[%emt 0:00:00]} 60. Ka5 {[%emt 0:00:07]} Ke5 {[%emt 0:00:05]} ({Not} 60... Kc6 61. d4 $15) 61. Ka4 {[%emt 0:00:27]} Kd4 {[%emt 0:00:04]} 62. Kb3 {[%emt 0:00:09]} Kxd3 {[%emt 0:00:48]} 63. Kb2 {[%emt 0:00:06]} Nc6 {[%emt 0:00:21]} 64. a7 {[%emt 0:00:05]} Ncxa7 {[%emt 0:00:03]} 65. Kc1 {[%emt 0:00:15]} Ke2 {[%emt 0:01:09]} 66. Kc2 {[%emt 0:00:35]} Nc8 {[%emt 0:00:05]} 67. Kb3 {[%emt 0:00:39]} Nb6 {[%emt 0:00:04]} 68. Kc2 {[%emt 0:00:14]} Ke3 {[%emt 0:02:18]} 69. Kd1 {[%emt 0:02:04]} Nc4 {[%emt 0:01:26]} 70. Kc2 {[%emt 0:01:09]} Nd2 {[%emt 0:01:07]} 71. Kd1 {[%emt 0:01:17]} Nf3 {[%emt 0:00:31]} 72. Kc2 {[%emt 0:01:46]} Nfd4+ {[%emt 0:00:44]} 73. Kd1 {[%emt 0:01:06]} Ne2 {[%emt 0:00:22]} 74. Kc2 {[%emt 0:00:24]} Nec3 {[%emt 0:00:11] ( -> ...Ke2)} 75. Kb2 {[%emt 0:00:30]} Kd2 {[%emt 0:00:36] Black mates.} 76. Kb3 {[%emt 0:00:51]} Kd3 {[%emt 0:00:05]} 77. Kb2 {[%emt 0:00:03]} Nd5 {[%emt 0:00:37]} 78. Kb3 {[%emt 0:00:32]} Nb6 {[%emt 0:00:08]} 79. Kb2 {[%emt 0:00:09]} Kd2 {[%emt 0:00:03]} 80. Kb1 {[%emt 0:02:41]} Nc4 {[%emt 0:00:09]} 81. Ka2 {[%emt 0:00:09]} Kc2 {[%emt 0:00:06]} 82. Ka1 {[%emt 0:00:03]} Nc3 {[%emt 0:00:04] Both players deserved the win here.  Weighted Error Value: White=0.39/Black=0.29 (precise)} 0-1

[Event "Cattolica Chess Festival 2022"]
[Site "Cattolica"]
[Date "2022.06.04"]
[Round "1.2"]
[White "Pantsulaia, Levan"]
[Black "Bin-Suhayl, Ieysaa"]
[Result "1-0"]
[ECO "A09"]
[WhiteElo "2587"]
[BlackElo "2255"]
[Annotator "TA"]
[PlyCount "129"]
[EventDate "2022.06.04"]
[EventCountry "ITA"]
[SourceTitle "playchess.com"]
[Source "ChessBase"]
[SourceQuality "1"]
[TimeControl "5400+30"]

{[%evp 9,129,-10,-4,-8,-5,1,29,-25,-11,-23,-10,-14,-22,-25,-25,-25,-22,-22,-12,-36,20,-42,0,0,0,0,34,0,-10,-6,-8,-21,-14,-25,-22,-44,-12,-46,-52,-59,-34,-102,-78,-56,-73,-480,-455,-396,128,114,127,56,187,180,183,191,185,178,179,176,222,222,222,219,295,281,322,335,374,371,365,359,302,281,273,200,421,299,297,289,702,702,981,921,2017,2018,2070,1676,1989,1695,1738,1681,1605,1651,1777,1761,1624,1678,2365,2194,2275,2240,2013,1897,1702,1822,1662,1657,2249,1907,6433,5900,29974,29975,29984,29985,29987,29988,29990,29989,29989,29990]} 1. Nf3 {[%emt 0:30:04]} d5 {[%emt 0:30:34]} 2. c4 {[%emt 0:00:22]} d4 {[%emt 0:00:27]} 3. g3 {[%emt 0:00:07]} c5 {[%emt 0:02:04]} 4. e3 {[%emt 0:00:10]} Nc6 {[%emt 0:00:05]} 5. exd4 {[%emt 0:00:05]} cxd4 {[%emt 0:00:09]} 6. Bg2 {[%emt 0:00:14] A09: Réti Opening: 1 Nf3 d5 2 c4.} Nf6 {[%emt 0:00:31]} 7. O-O {[%emt 0:00:33]} Nd7 {[%emt 0:03:17]} 8. d3 {[%emt 0:03:39]} (8. b4 $142) 8... e5 $11 {[%emt 0:02:26]} 9. Re1 {[%emt 0:02:03][%cal Of3e5]} Be7 {[%emt 0:00:24]} 10. Na3 {[%emt 0:00:58]} O-O {[%emt 0:02:12]} 11. Nc2 {[%emt 0:00:04][%cal Ob2b4]} a5 {[%emt 0:01:31] Inhibits b4.} 12. Rb1 {[%emt 0:05:26]} Re8 {[%emt 0:04:18]} 13. a3 {[%emt 0:01:06]} a4 $1 {[%emt 0:02:24]} 14. Bd2 {[%emt 0:00:41] [#]} Bd6 $146 {[%emt 0:01:13]} (14... f6 $15) ({Predecessor:} 14... Bf6 15. Bb4 Ndb8 16. Nd2 Na6 17. Ne4 Be7 18. Bxe7 Rxe7 19. Qd2 Bf5 20. f4 h6 21. fxe5 Nxe5 {0-1 (42) Ikeda,J (2438)-Kuybokarov,T (2523) Sydney 2020}) 15. Bb4 {[%emt 0:04:17]} (15. Ng5 $11 Nf6 16. Ne4) 15... Nc5 {[%emt 0:02:24]} 16. Bxc5 {[%emt 0:01:06]} Bxc5 {[%emt 0:00:06]} 17. Nd2 {[%emt 0:00:16]} Na5 {[%emt 0:10:35]} 18. b4 {[%emt 0:01:54]} axb3 $1 {[%emt 0:00:20]} 19. Nxb3 {[%emt 0:00:05]} Nxb3 {[%emt 0:03:10]} 20. Rxb3 {[%emt 0:00:08]} Ra7 {[%emt 0:03:31]} 21. Bd5 {[%emt 0:01:50]} b6 {[%emt 0:03:02]} 22. Qf3 {[%emt 0:00:39]} Qc7 {[%emt 0:12:41]} 23. Reb1 {[%emt 0:05:01]} (23. Nb4 {keeps more tension.} Rxa3 24. Rxa3 Bxb4 25. Raa1) 23... Kh8 {[%emt 0:02:05]} 24. Re1 {[%emt 0:05:37]} f5 {[%emt 0:02:23]} 25. Re2 {[%emt 0:01:05]} ({White should try} 25. Nb4 $15) 25... Qd6 {[%emt 0:00:54]} 26. Nb4 {[%emt 0:03:45]} Bxb4 {[%emt 0:05:10]} 27. axb4 {[%emt 0:00:11][%mdl 8192]} (27. Rxb4 $17 {was the crucial defense.} Rxa3 28. Reb2) 27... Ra1+ $19 {[%emt 0:00:03]} 28. Kg2 {[%emt 0:00:07]} f4 $2 {[%emt 0:02:04] [#]} (28... Qh6 $1 $19 {[%cal Rh6c1]} 29. Qf4 g5 30. Qxd4 exd4 31. Rxe8+ Kg7 32. Rg8+ Kf6 33. Rxc8 Qh5 34. Rc6+ Ke7) 29. Qxf4 $16 {[%emt 0:11:42][%mdl 512]} Rf8 {[%emt 0:00:28]} 30. Qd2 {[%emt 0:03:02]} ({Not} 30. Qxe5 $2 Qh6 31. Be6 (31. Re1 {is a self mate.} Bh3+ 32. Kh1 Qc1) 31... Qc1 $19) ({Resist} 30. Qh4 Bf5 $14) (30. Qg5 $1 $16) 30... Bg4 {[%emt 0:04:27]} ({Better is} 30... Be6 $14 31. Bxe6 Qxe6) 31. Re1 $18 {[%emt 0:03:26]} Rxe1 {[%emt 0:00:00]} 32. Qxe1 {[%emt 0:00:00]} Qf6 {[%emt 0:00:00]} 33. Kg1 {[%emt 0:00:00]} Bf3 {[%emt 0:00:00] [#]} 34. Rb2 $1 {[%emt 0:00:00]} h5 {[%emt 0:00:00]} (34... Qf5 $142 35. Bxf3 Qxf3) 35. Bxf3 {[%emt 0:00:00]} Qxf3 {[%emt 0:00:00][%mdl 4096] Endgame KQR-KQR} 36. Qe2 {[%emt 0:00:00]} Qf5 {[%emt 0:00:00]} 37. h4 {[%emt 0:00:00]} Re8 {[%emt 0:00:26]} 38. Kg2 {[%emt 0:00:00]} e4 {[%emt 0:01:31] [#]} 39. dxe4 {[%emt 0:00:00]} Rxe4 {[%emt 0:00:10]} 40. Qf3 {[%emt 0:00:00]} Qg6 {[%emt 0:00:09]} 41. Rd2 {[%emt 0:01:05]} Rxh4 {[%emt 0:02:04][%cal Od4d3]} 42. Qd5 {[%emt 0:00:13] And now Qd8+ would win.} Rg4 $2 {[%emt 0:01:22]} (42... Qe4+ 43. Qxe4 Rxe4) 43. Rxd4 {[%emt 0:00:15]} Rg5 {[%emt 0:00:33]} 44. Qd6 {[%emt 0:04:18]} Qxd6 $2 {[%emt 0:00:40]} (44... Kg8 45. c5 bxc5 46. bxc5 Qf6 47. Qb8+ Kh7 48. Qb1+ Kh8) 45. Rxd6 {[%emt 0:00:07] KR-KR} Rg4 {[%emt 0:00:08]} 46. f4 {[%emt 0:03:00] aiming for Kf3.} h4 {[%emt 0:00:33]} 47. Kh3 {[%emt 0:02:49]} Rxg3+ {[%emt 0:00:07]} 48. Kxh4 {[%emt 0:00:04]} Rc3 {[%emt 0:00:20]} 49. Rc6 {[%emt 0:00:14]} Kg8 {[%emt 0:00:53]} 50. Kg5 {[%emt 0:00:25]} Kf7 {[%emt 0:00:19]} 51. b5 {[%emt 0:00:41]} Ke7 {[%emt 0:00:53]} 52. Kg6 {[%emt 0:00:29]} Rg3+ {[%emt 0:00:40]} 53. Kf5 {[%emt 0:00:18]} Rc3 {[%emt 0:00:06]} 54. Ke5 {[%emt 0:00:29]} Rc1 {[%emt 0:00:09]} 55. Kd4 {[%emt 0:01:32]} Rd1+ {[%emt 0:00:21]} 56. Kc3 {[%emt 0:00:37]} Rc1+ {[%emt 0:00:16]} 57. Kd2 {[%emt 0:00:17]} Rf1 {[%emt 0:00:03]} 58. Rxb6 {[%emt 0:00:07]} Rxf4 {[%emt 0:00:08]} 59. Kc3 {[%emt 0:00:07]} g5 {[%emt 0:00:12]} 60. Rg6 {[%emt 0:01:19]} Rg4 {[%emt 0:00:26]} 61. b6 {[%emt 0:00:19][%cal Bb5b6,Bb6b7][%mdl 32] White mates.} Kd7 {[%emt 0:00:12]} 62. c5 {[%emt 0:00:22][%cal Bc4c5,Bc5c6][%mdl 32]} Rg1 {[%emt 0:00:18]} 63. c6+ {[%emt 0:00:09]} Kd8 {[%emt 0:00:03]} 64. Rg8+ {[%emt 0:00:40]} Ke7 {[%emt 0:00:04]} 65. b7 {[%emt 0:00:08] Weighted Error Value: White=0.30/Black=0.59} 1-0

[Event "Cattolica Chess Festival 2022"]
[Site "Cattolica"]
[Date "2022.06.04"]
[Round "1.3"]
[White "Bernabei, Alberto"]
[Black "Basso, Pier Luigi"]
[Result "0-1"]
[ECO "B40"]
[WhiteElo "1874"]
[BlackElo "2570"]
[Annotator "TA"]
[PlyCount "78"]
[EventDate "2022.06.04"]
[EventCountry "ITA"]
[SourceTitle "playchess.com"]
[Source "ChessBase"]
[SourceQuality "1"]
[TimeControl "5400+30"]

{[%evp 9,78,-8,-13,-11,-11,-7,-1,-1,4,1,74,66,77,35,37,17,56,23,31,-16,56,76,58,33,41,0,7,-11,0,-13,15,14,11,15,9,0,0,0,12,0,63,-147,-143,-148,-139,-149,-142,-140,-94,-103,-103,-163,-162,-183,-183,-183,-176,-191,-177,-208,-202,-250,-235,-299,-297,-302,-279,-292,-289,-390,-379]} 1. e4 {[%emt 0:30:05]} c5 {[%emt 0:30:58]} 2. Nf3 {[%emt 0:00:18]} e6 {[%emt 0:00:10]} 3. c3 {[%emt 0:00:21]} d5 {[%emt 0:00:52]} 4. Bb5+ {[%emt 0:01:26]} Bd7 {[%emt 0:01:19]} 5. Bxd7+ {[%emt 0:00:48]} Qxd7 {[%emt 0:04:27]} 6. exd5 {[%emt 0:02:00] B40: Sicilian: 2...e6, Unusual lines.} Qxd5 {[%emt 0:00:08]} 7. d4 {[%emt 0:01:19]} Nc6 {[%emt 0:00:34]} 8. O-O {[%emt 0:03:58] The position is equal.} Nf6 {[%emt 0:05:48]} 9. Be3 {[%emt 0:04:24] [#]} c4 $146 {[%emt 0:07:13]} (9... cxd4 $11 10. Nxd4 Rd8) ({Predecessor:} 9... Rd8 10. Nbd2 Be7 11. c4 Qh5 12. dxc5 Bxc5 13. Qb3 Bxe3 14. Qxe3 Ng4 15. Qc3 O-O {½-½ (58) Nurcahyo,D (1640)-Trigance,E (1716) FICGS email 2019}) 10. Nbd2 {[%emt 0:07:18]} Rc8 {[%emt 0:06:27]} 11. b3 {[%emt 0:05:09]} cxb3 {[%emt 0:00:17]} 12. c4 {[%emt 0:00:20]} (12. Nxb3 Bd6 $11) 12... Qd7 {[%emt 0:04:35]} 13. axb3 {[%emt 0:04:37]} (13. Ne5 $5 {[%cal Re5d7]} Qd8 14. Nxc6 (14. Qxb3 Bd6 $14) (14. axb3 a6 $14) (14. Nxb3 Bd6 $11) 14... Rxc6 15. axb3 $14) 13... Bd6 {[%emt 0:04:28] Inhibits Ne5.} 14. Ne5 {[%emt 0:05:41]} (14. Qb1 $14 {feels stronger.}) 14... Qc7 {[%emt 0:01:49]} (14... Nxe5 $11 15. dxe5 Bxe5) 15. Nxc6 $14 {[%emt 0:06:04]} bxc6 {[%emt 0:00:37]} 16. Nf3 {[%emt 0:04:45]} O-O {[%emt 0:00:59]} 17. Ne5 {[%emt 0:07:12]} c5 {[%emt 0:01:20] White must now prevent ...cxd4.} 18. Nf3 {[%emt 0:01:05]} Rfd8 {[%emt 0:03:04]} 19. Qe2 {[%emt 0:00:53]} Rb8 {[%emt 0:03:17]} (19... Ng4 {seems wilder.} 20. Bg5 Bxh2+ 21. Kh1 Rd7) 20. dxc5 {[%emt 0:03:17]} Bxc5 {[%emt 0:00:54]} 21. Bxc5 {[%emt 0:00:16]} Qxc5 {[%emt 0:00:05]} 22. Rfd1 {[%emt 0:01:22]} Rxd1+ {[%emt 0:01:07]} 23. Rxd1 {[%emt 0:00:17]} h6 {[%emt 0:00:24]} 24. Ne5 {[%emt 0:03:41]} g6 {[%emt 0:05:01]} (24... Rxb3 $11 25. Rd8+ Kh7 26. Qc2+ Ne4) 25. Nxg6 $2 {[%emt 0:04:23]} fxg6 $17 {[%emt 0:00:47]} 26. Qxe6+ {[%emt 0:00:11]} Kg7 {[%emt 0:00:07]} 27. Rd6 {[%emt 0:01:04] [#]} Rf8 {[%emt 0:01:42]} 28. Rc6 {[%emt 0:00:39] [#]} ({Don't go for} 28. Qe7+ $2 Rf7 29. Qe6 Qa3 $19) 28... Qa5 {[%emt 0:00:52]} (28... Qa3 $142 $1 {[%cal Ra3c1] ( -> ...Qc1+)} 29. Rc7+ Kh8) 29. Ra6 {[%emt 0:00:28]} ({Wrong is} 29. Qe7+ $2 Rf7 30. Qe2 Qa1+ 31. Qf1 Qc3 $19) 29... Qc7 {[%emt 0:00:22]} 30. Rc6 {[%emt 0:01:12]} (30. h3 $17) 30... Qd8 $19 {[%emt 0:02:01]} 31. Qd6 {[%emt 0:00:00] Prevents Qd1+.} Qxd6 {[%emt 0:00:00]} 32. Rxd6 {[%emt 0:00:00][%mdl 4096] Endgame KRN-KR} Rb8 {[%emt 0:00:00]} 33. Ra6 {[%emt 0:00:00]} Rb7 {[%emt 0:00:00]} 34. c5 {[%emt 0:00:00]} Nd5 {[%emt 0:00:00]} 35. Kf1 {[%emt 0:00:00]} Nb4 {[%emt 0:00:00]} ({Not} 35... Rxb3 $2 36. Rxa7+ Kf6 37. g3) 36. Ra4 {[%emt 0:00:00]} Kf6 {[%emt 0:00:00]} 37. Ke2 {[%emt 0:00:00]} Ke5 {[%emt 0:00:00]} 38. Kd2 {[%emt 0:00:00]} Kd5 {[%emt 0:00:00]} 39. Ra5 {[%emt 0:00:00]} Nc6 {[%emt 0:00:00][%csl LRa5,LRb3] Weighted Error Value: White=0.31/Black=0.16 (very precise)} 0-1

[Event "Cattolica Chess Festival 2022"]
[Site "Cattolica"]
[Date "2022.06.04"]
[Round "1.4"]
[White "Brunello, Sabino"]
[Black "Lohvinov, Petro"]
[Result "1-0"]
[ECO "E15"]
[WhiteElo "2521"]
[BlackElo "2232"]
[Annotator "TA"]
[PlyCount "87"]
[EventDate "2022.06.04"]
[EventCountry "ITA"]
[SourceTitle "playchess.com"]
[Source "ChessBase"]
[SourceQuality "1"]
[TimeControl "5400+30"]

{[%evp 23,87,28,25,18,44,38,35,40,37,32,35,43,44,26,35,25,28,27,26,13,15,18,29,25,28,36,28,21,41,16,15,14,24,7,184,195,160,182,304,263,322,322,316,295,362,351,497,443,443,436,542,525,550,548,800,800,762,762,806,781,699,641,1051,1018,970,799]} 1. d4 {[%emt 0:30:04]} Nf6 {[%emt 0:30:08]} 2. Nf3 {[%emt 0:00:09]} e6 {[%emt 0:00:09]} 3. c4 {[%emt 0:00:07]} b6 {[%emt 0:00:06]} 4. g3 {[%emt 0:00:07]} Ba6 {[%emt 0:00:03]} 5. b3 {[%emt 0:01:57]} Bb4+ {[%emt 0:00:07]} 6. Bd2 {[%emt 0:00:14]} Be7 {[%emt 0:00:02]} 7. Bg2 {[%emt 0:00:09]} c6 {[%emt 0:00:12]} 8. Bc3 {[%emt 0:01:00]} d5 {[%emt 0:00:11]} 9. Nbd2 {[%emt 0:00:06]} O-O {[%emt 0:00:33]} 10. O-O {[%emt 0:00:05]} Nbd7 {[%emt 0:00:27]} 11. Re1 {[%emt 0:00:06]} Rc8 {[%emt 0:09:01]} 12. e4 {[%emt 0:00:23]} dxe4 {[%emt 0:01:35]} 13. Nxe4 {[%emt 0:01:12] E15: Queen's Indian: 4 g3 sidelines, 4 g3 Ba6 and 4 g3 Bb7 early deviations.} Bb7 {[%emt 0:21:55]} 14. Qc2 {[%emt 0:09:36]} c5 {[%emt 0:16:09]} 15. Nxf6+ {[%emt 0:00:51] White is slightly better.} Bxf6 {[%emt 0:02:42] [#]} 16. Ng5 {[%emt 0:04:56]} Bxg5 {[%emt 0:00:14]} 17. Bxb7 {[%emt 0:00:35] [#]} cxd4 $146 {[%emt 0:11:17]} ({Predecessor:} 17... Rc7 18. Be4 h6 19. dxc5 Nxc5 20. Rad1 Rd7 21. Rxd7 Qxd7 22. h4 Be7 23. Rd1 Qc7 {1-0 (59) Henderikse,B (2058)-Henrichsen,J (1925) Caleta 2011}) 18. Bxd4 {[%emt 0:08:47]} Rc7 {[%emt 0:01:13]} 19. Be4 {[%emt 0:00:12] A strong pair of Bishops.} h6 {[%emt 0:00:50]} 20. Rad1 {[%emt 0:00:33][%cal Od4e5]} Qe7 {[%emt 0:00:47]} 21. Qe2 {[%emt 0:03:29]} Bf6 {[%emt 0:02:03]} 22. Be3 {[%emt 0:00:26]} Bg5 {[%emt 0:00:42]} 23. f4 {[%emt 0:04:10]} Bf6 {[%emt 0:00:01]} 24. Kg2 $36 {[%emt 0:01:53][%mdl 2048] White is pushing.} Nc5 {[%emt 0:00:58]} 25. Bf3 {[%emt 0:02:17]} Rd8 {[%emt 0:01:01]} 26. h4 {[%emt 0:01:28]} Rcd7 {[%emt 0:00:32]} 27. Rxd7 {[%emt 0:01:54]} Qxd7 {[%emt 0:00:26]} 28. b4 {[%emt 0:03:52][%cal Bb3b4,Bb4c5,Bc5c6][%mdl 32]} Nb7 {[%emt 0:00:34] A mistake that costs the game.} (28... Na6 $1 $11) 29. c5 $18 {[%emt 0:02:59]} bxc5 {[%emt 0:00:30]} 30. bxc5 {[%emt 0:00:01] [#] Black must now prevent c6.} Qc7 {[%emt 0:00:31]} (30... Na5 $142 31. Rc1 Nc6) 31. Qb5 {[%emt 0:06:08]} Na5 {[%emt 0:00:20]} 32. Re2 {[%emt 0:05:45]} Rb8 {[%emt 0:00:39]} 33. Qa6 {[%emt 0:01:20]} Rc8 {[%emt 0:00:31]} 34. c6 {[%emt 0:01:00]} e5 {[%emt 0:00:29]} (34... Rd8 $142 35. Bd2 (35. Bxa7 Ra8 $11) 35... Nxc6) 35. fxe5 {[%emt 0:03:02] White is clearly winning.} Bxe5 {[%emt 0:00:29]} 36. Bf2 {[%emt 0:00:12][%cal Oe2e5] Rxe5! is the strong threat.} ({Not} 36. Bd2 Nxc6 37. Bxc6 (37. Qxc6 Qxc6 38. Bxc6 Bxg3 $18) 37... Qxc6+ 38. Qxc6 Rxc6 $18) 36... Bf6 {[%emt 0:00:31]} 37. Rd2 {[%emt 0:02:00] aiming for Rd7.} Rd8 {[%emt 0:00:30] Inhibits Rd7.} 38. Qxa7 {[%emt 0:02:35]} Qxa7 {[%emt 0:00:29]} 39. Rxd8+ {[%emt 0:00:05]} Bxd8 {[%emt 0:00:02]} 40. Bxa7 {[%emt 0:00:05] KBB-KBN} Bc7 {[%emt 0:00:22]} 41. Bd5 {[%emt 0:00:05]} Kf8 {[%emt 0:00:56]} 42. Bc5+ {[%emt 0:00:47]} Ke8 {[%emt 0:00:17]} 43. h5 {[%emt 0:00:15]} g6 {[%emt 0:00:00]} 44. g4 {[%emt 0:00:00] Weighted Error Value: White=0.06 (flawless) /Black=0.37} 1-0